Cogmind - Beta 13 @@@ ROGUE MODE // 2024.07.31 @ 20:13:50 Player: whimsical Result: Destroyed by H-55 Commando with Assault Rifle Performance ------------- Evolutions (3) 1500 Regions Visited (5) 1000 Robots Destroyed (15) 75 Value Destroyed (483) 483 Prototype IDs (0) 0 Alien Tech Used (0) 0 Bonus (0) 0 TOTAL SCORE: 3058 Bonus ------- None Cogmind --------- Core Integrity 0/700 Matter 204/300 Energy 98/100 System Corruption 2% Temperature Cool (0) Movement Core (50) Location -7/Factory Parts ------- > --- POWER (2) -------- (None) > --- PROPULSION (4) --- (None) > --- UTILITY (4) ------ Visual Processing Unit Advanced Targeting Computer Advanced Targeting Computer > --- WEAPON (3) ------- (None) > --- INVENTORY (5) ---- Large Battery (200) Weapon Cycler Heavy Assault Rifle Peak State ------------ > --- POWER ------------ Deuterium Engine Light Nuclear Core > --- PROPULSION ------- Carbon-fiber Leg Antigrav System > --- UTILITY ---------- Small Storage Unit Medium Matter Pod Visual Processing Unit Improved Sensor Array > --- WEAPON ----------- Assault Rifle Minigun Gauss Rifle > --- INVENTORY -------- Light Ion Engine Nuclear Core Large Battery Weapon Cycler Heavy Assault Rifle [Rating: 31] Favorites ----------- Power Deuterium Engine Engine Deuterium Engine Power Core Light Nuclear Core Propulsion Aluminum Leg Leg Aluminum Leg Hover Unit Antigrav System Utility Small Storage Unit Device Improved Sensor Array Storage Small Storage Unit Processor Visual Processing Unit Weapon Assault Rifle Ballistic Gun Assault Rifle Special Melee Weapon Improved Datajack Build | -11 -10 -9 -9 -8 -7 ------- Run | Yrd Mat Mat Min Mat Fac Slots Evolved 6 | . . 2 . 2 2 Power 1 | . . . . 1 . Propulsion 2 | . . 2 . . . Utility 2 | . . . . . 2 Weapon 1 | . . . . 1 . Parts Attached 28 | 6 1 2 . 7 12 Power 7 | 1 . . . 4 2 Engine 5 | 1 . . . 3 1 Core 2 | . . . . 1 1 Reactor . | . . . . . . Propulsion 5 | 2 . 1 . 1 1 Treads . | . . . . . . Leg 4 | 2 . 1 . 1 . Wheel . | . . . . . . Hover 1 | . . . . . 1 Flight . | . . . . . . Utility 7 | 1 1 1 . . 4 Device 1 | . . . . . 1 Storage 3 | 1 1 . . . 1 Processor 3 | . . 1 . . 2 Hackware . | . . . . . . Protection . | . . . . . . Artifact . | . . . . . . Weapon 9 | 2 . . . 2 5 Energy Gun . | . . . . . . Energy Cannon . | . . . . . . Ballistic Gun 6 | 2 . . . 2 2 Ballistic Cannon . | . . . . . . Launcher . | . . . . . . Special Weapon . | . . . . . . Impact Weapon . | . . . . . . Slashing Weapon . | . . . . . . Piercing Weapon . | . . . . . . Special Melee Weapon 3 | . . . . . 3 Unidentified Prototypes . | . . . . . . Parts Lost 20 | . . . . 4 16 Power 5 | . . . . 1 4 Propulsion 5 | . . . . 2 3 Utility 3 | . . . . . 3 Weapon 7 | . . . . 1 6 Highest Loss Streak 9 | . . . . 3 9 To Critical Strikes . | . . . . . . Average Slot Usage (%) 80 | . 98 88 88 80 72 Engine 9 | . 14 11 11 11 5 Core 3 | . . . . 5 6 Leg 19 | . 28 33 33 19 9 Device 2 | . . . . . 5 Storage 13 | . 26 11 11 9 13 Processor 8 | . . 10 11 9 8 Ballistic Gun 21 | . 28 22 22 26 18 Naked Turns . | . . . . . . Heaviest Build 31 | 14 17 17 14 28 31 Greatest Support 35 | 20 20 30 30 35 25 Greatest Overweight (x) 4 | 1 . . . 1 4 Average Overweight (x) . | . . . . . 1 Largest Inventory Capacity 8 | 8 8 8 8 8 8 Average Capacity 7 | 7 8 8 8 8 7 Most Carried 7 | 1 2 4 5 7 7 Average Carried 4 | . 1 2 4 5 5 Final Capacity 8 | 8 8 8 8 8 5 Final Carried 7 | 1 2 4 5 7 3 Class Distribution -------------------- 49% | Mutant 35% | Scavenger-Skirmisher 15% | Skirmisher Dominant Class ---------------- Mutant | -10/Materials Mutant | -9/Materials Mutant | -9/Mines Scavenger-Skirmisher | -8/Materials Scavenger-Skirmisher | -7/Factory Resources | -11 -10 -9 -9 -8 -7 ----------- Run | Yrd Mat Mat Min Mat Fac Matter Collected 701 | 150 111 101 120 177 42 Remotely . | . . . . . . Salvage Created 617 | . 87 101 64 177 188 Parts 49 | . 4 6 10 10 19 Haulers Intercepted 1 | . . . . . 1 Recyclers Shooed 3 | . . . 1 1 1 Parts Field Recycled . | . . . . . . Retrieved Matter . | . . . . . . Parts Self-Destructed . | . . . . . . Prevented . | . . . . . . Kills | -11 -10 -9 -9 -8 -7 ------- Run | Yrd Mat Mat Min Mat Fac Combat Hostiles Destroyed 13 | . 2 2 4 2 3 Guns 13 | . 2 2 4 2 3 Classes Destroyed 7 | . 1 1 1 2 2 Hauler 1 | . . . . . 1 Recycler 1 | . . . . 1 . Swarmer 4 | . . . 4 . . Grunt 3 | . 2 . . . 1 Sentry 3 | . . 2 . 1 . Hunter 1 | . . . . 1 . Programmer 2 | . . . . . 2 Best Kill Streak 4 | . 2 2 4 2 2 Combat Bots Only 4 | . 2 2 4 1 1 Max Kills in Single Turn 2 | . 1 1 2 1 1 Gunslinging 1 | . . . 1 . . Exploded . | . . . . . . Melee . | . . . . . . Uniques/NPCs Destroyed . | . . . . . . Combat | -11 -10 -9 -9 -8 -7 -------- Run | Yrd Mat Mat Min Mat Fac Hostile Shots Fired 270 | . 9 12 17 54 178 Missed 87 | . 2 3 6 21 55 Damage Taken 2389 | . 78 130 89 407 1685 Core 783 | . . 32 6 44 701 Absorbed by Shields . | . . . . . . Core Remaining (%) 95 | 100 100 . 90 92 . Volleys Fired 58 | . 6 10 6 15 21 Largest 3 | . 2 2 2 3 3 Hottest 73 | . 40 40 40 60 73 Shots Fired 146 | . 12 20 12 44 58 Gun 146 | . 12 20 12 44 58 Cannon . | . . . . . . Launcher . | . . . . . . Special . | . . . . . . Kinetic 146 | . 12 20 12 44 58 Thermal . | . . . . . . Explosive . | . . . . . . Electromagnetic . | . . . . . . Robot Hit Streak 7 | . 2 6 3 7 5 Robot Miss Streak 6 | . 1 3 1 4 6 Penetration Max 1 | . . . . . 1 Secondary Targets 3 | . 1 . 1 1 . Max Gunslinging Chain 1 | . 1 . 1 1 . Shots Hit Robots 80 | . 8 12 8 25 27 Core Hits 30 | . 4 4 4 8 10 Critical Kills 1 | . . . 1 . . Critical Parts Destroyed 1 | . . . . . 1 Critical Strikes 2 | . . . 1 . 1 Destroy 2 | . . . 1 . 1 Melee Attacks 2 | . . . . . 2 Impact . | . . . . . . Slashing . | . . . . . . Piercing . | . . . . . . Sneak Attacks 1 | . . . . . 1 Combat Hostiles . | . . . . . . Follow-up Attacks . | . . . . . . Damage Inflicted 1066 | . 96 152 100 253 465 Guns 1066 | . 96 152 100 253 465 Cannons . | . . . . . . Explosions . | . . . . . . Melee . | . . . . . . Ramming . | . . . . . . Kinetic 1066 | . 96 152 100 253 465 Thermal . | . . . . . . Explosive . | . . . . . . Electromagnetic . | . . . . . . Impact . | . . . . . . Slashing . | . . . . . . Piercing . | . . . . . . Highest Corruption 2 | . . . . . 2 Average Corruption 1 | . . . . . 1 Corruption Purged . | . . . . . . Corruption Blocked . | . . . . . . Effects 6 | . . . . . 6 Message Errors 1 | . . . . . 1 Matter Fused 2 | . . . . . 2 Data Loss (minor) 1 | . . . . . 1 Data Loss (major) 1 | . . . . . 1 Weapon Failures 1 | . . . . . 1 Overload Shots . | . . . . . . Overflow Damage . | . . . . . . Projectiles . | . . . . . . Explosions . | . . . . . . Melee . | . . . . . . Knockbacks . | . . . . . . Impact . | . . . . . . Kinetic . | . . . . . . Secondary . | . . . . . . Self-Inflicted Damage . | . . . . . . Shots . | . . . . . . Rammed . | . . . . . . Targets Rammed . | . . . . . . Kicked . | . . . . . . Crushed . | . . . . . . Highest Temperature 36 | . . 17 . 36 22 Average Temperature 9 | . . 12 . 9 10 Received Heat Transfer 204 | . 42 63 . 72 27 Siege Activations . | . . . . . . Robots Corrupted . | . . . . . . Combat Hostiles . | . . . . . . Parts Fried . | . . . . . . Impact Corruptions . | . . . . . . Robots Melted . | . . . . . . Combat Hostiles . | . . . . . . Parts Melted . | . . . . . . Heat Transferred . | . . . . . . Parts Sabotaged . | . . . . . . Parts Stolen . | . . . . . . Parts Stripped . | . . . . . . Power Chain Reactions . | . . . . . . Alert | -11 -10 -9 -9 -8 -7 ------- Run | Yrd Mat Mat Min Mat Fac Peak Influence 157 | . 65 117 157 121 89 Initial 61 | . . 27 45 61 54 Average 64 | . 26 78 93 94 51 Maximum Alert Level . | . . . . . . Low Security (%) 100 | 100 100 100 100 100 100 Level 1 . | . . . . . . Level 2 . | . . . . . . Level 3 . | . . . . . . Level 4 . | . . . . . . Level 5 . | . . . . . . High Security . | . . . . . . Max Security . | . . . . . . Squads Dispatched 6 | . 1 1 . 1 3 Investigation 1 | . . . . . 1 Extermination 1 | . . . . . 1 Reinforcement 4 | . 1 1 . 1 1 Assault . | . . . . . . Garrison . | . . . . . . Intercept . | . . . . . . Searches Triggered . | . . . . . . Construction Impeded . | . . . . . . Haulers Reinforced 1 | . . . . . 1 Active Scanning Responses . | . . . . . . Cargo Convoy Interrupts . | . . . . . . Stealth | -11 -10 -9 -9 -8 -7 --------- Run | Yrd Mat Mat Min Mat Fac Distress Signals 1 | . 1 . . . . Communications Jammed . | . . . . . . Distress Signals . | . . . . . . Times Spotted 35 | . 4 5 7 7 12 Peak Tracking Total 5 | . 4 3 4 4 5 Tactical Retreats 1 | . . . . . 1 Traps | -11 -10 -9 -9 -8 -7 ------- Run | Yrd Mat Mat Min Mat Fac Traps Triggered 1 | . . . . . 1 Indirectly . | . . . . . . Trap Hack Attempts . | . . . . . . Triggered . | . . . . . . Disarmed . | . . . . . . Reprogrammed . | . . . . . . Reused . | . . . . . . Traps Extracted . | . . . . . . Installed . | . . . . . . Triggered . | . . . . . . Machines | -11 -10 -9 -9 -8 -7 ---------- Run | Yrd Mat Mat Min Mat Fac Machines Disabled . | . . . . . . Max in Single Turn . | . . . . . . Machines Repaired . | . . . . . . Machines Dismantled . | . . . . . . Machines Sabotaged . | . . . . . . Overloaded Fab Kills . | . . . . . . Hacking | -11 -10 -9 -9 -8 -7 --------- Run | Yrd Mat Mat Min Mat Fac Machines Accessed 2 | . . . 1 1 . Terminals 2 | . . . 1 1 . Fabricators . | . . . . . . Repair Stations . | . . . . . . Recycling Units . | . . . . . . Scanalyzers . | . . . . . . Garrison Access . | . . . . . . Total Hacks 9 | . . . 6 3 . Successful 3 | . . . 2 1 . Failed 6 | . . . 4 2 . Catastrophic . | . . . . . . Database Lockouts . | . . . . . . Manual 4 | . . . 4 . . Terminals 9 | . . . 6 3 . Fabricators . | . . . . . . Repair Stations . | . . . . . . Recycling Units . | . . . . . . Scanalyzers . | . . . . . . Garrison Access . | . . . . . . Terminal Hacks 3 | . . . 2 1 . Record 1 | . . . 1 . . Investigation Status 1 | . . . 1 . . Zone Layout 1 | . . . . 1 . Fabricator Hacks . | . . . . . . Repair Station Hacks . | . . . . . . Recycling Unit Hacks . | . . . . . . Scanalyzer . | . . . . . . Garrison Access Hacks . | . . . . . . Unauthorized Hacks . | . . . . . . Terminals . | . . . . . . Fabricators . | . . . . . . Repair Stations . | . . . . . . Recycling Units . | . . . . . . Scanalyzers . | . . . . . . Garrison Access . | . . . . . . Data Cores Recovered . | . . . . . . Used . | . . . . . . Hacking Detections 2 | . . . 1 1 . Full Trace Events . | . . . . . . Feedback Events . | . . . . . . Feedback Blocked . | . . . . . . Robot Schematics Acquired . | . . . . . . Robots Built . | . . . . . . Authchips . | . . . . . . Time . | . . . . . . Total Robot Build Rating . | . . . . . . Part Schematics Acquired . | . . . . . . Parts Built . | . . . . . . Authchips . | . . . . . . Time . | . . . . . . Total Part Build Rating . | . . . . . . Parts Repaired . | . . . . . . Time . | . . . . . . Parts Recycled . | . . . . . . Recycled Matter . | . . . . . . Retrieved Matter . | . . . . . . Retrieved Components . | . . . . . . Parts Scanalyzed . | . . . . . . Part Schematics Acquired . | . . . . . . Parts Damaged . | . . . . . . Bothacking | -11 -10 -9 -9 -8 -7 ------------ Run | Yrd Mat Mat Min Mat Fac Used RIF Installer . | . . . . . . Robots Hacked 2 | . . . . . 2 Non-combat 1 | . . . . . 1 Combat 1 | . . . . . 1 Robot Hacks Applied 2 | . . . . . 2 parse_system 2 | . . . . . 2 Relay Couplers Released 3 | . . . . . 3 Programmers 3 | . . . . . 3 Fabnet Peak Effective % . | . . . . . . Robots Rewired . | . . . . . . Allies Hacked . | . . . . . . Hacks Repelled . | . . . . . . Allies | -11 -10 -9 -9 -8 -7 -------- Run | Yrd Mat Mat Min Mat Fac Total Allies . | . . . . . . Largest Group . | . . . . . . Highest-Rated Group . | . . . . . . Highest-Rated Ally . | . . . . . . Total Orders . | . . . . . . Ally Attacks . | . . . . . . Total Damage . | . . . . . . Kills . | . . . . . . Allies Corrupted . | . . . . . . Allies Melted . | . . . . . . Intel | -11 -10 -9 -9 -8 -7 ------- Run | Yrd Mat Mat Min Mat Fac Robot Analysis Total . | . . . . . . Derelict Logs Recovered . | . . . . . . Drone Launches . | . . . . . . Drone Recoveries . | . . . . . . Exploration | -11 -10 -9 -9 -8 -7 ------------- Run | Yrd Mat Mat Min Mat Fac Turns Passed 1615 | 67 153 174 265 273 683 Spaces Moved 1013 | 49 111 116 206 169 362 Core 140 | 8 . . . . 132 Treads . | . . . . . . Legs 864 | 41 111 116 206 169 221 Wheels . | . . . . . . Hover 9 | . . . . . 9 Flight . | . . . . . . Fastest Speed 50 | 50 120 120 120 120 50 Average Speed 137 | 117 120 120 120 127 165 Slowest Speed 260 | 190 120 120 120 190 260 Overloaded Moves . | . . . . . . Propulsion Burnouts . | . . . . . . Robots Hopped . | . . . . . . Cave-ins Triggered . | . . . . . . Exploration Rate (%) 19 | 4 27 15 38 21 10 Regions Visited 5 Branch Regions 1 Pre-discovered Areas . | . . . . . . Known Exits Taken . | . . . . . . Unknown Exits Taken 5 | 1 1 1 1 1 . Scrap Searched 2 | . . . 2 . . Spaces Dug . | . . . . . . Terrain Destroyed . | . . . . . . Melee . | . . . . . . Projectile . | . . . . . . AOE . | . . . . . . Terrain Rammed . | . . . . . . Walls Destroyed . | . . . . . . Machines Disabled . | . . . . . . Actions | -11 -10 -9 -9 -8 -7 --------- Run | Yrd Mat Mat Min Mat Fac Total 1111 | 55 118 130 212 194 402 Wait . | . . . . . . Move 1008 | 48 110 115 205 168 362 Hop . | . . . . . . Pick Up 12 | 1 1 3 1 3 3 Fast Attach 15 | 6 1 . . 3 5 Attach 8 | . . 1 . 2 5 Detach . | . . . . . . Swap 5 | . . 1 . 2 2 Drop 3 | . . . . 1 2 Fire 58 | . 6 10 6 15 21 Melee 2 | . . . . . 2 Ram . | . . . . . . Kick . | . . . . . . Crush . | . . . . . . Escape Stasis . | . . . . . . Rewire . | . . . . . . Trap . | . . . . . . Miscellaneous . | . . . . . . Route ------- -11/Scrapyard -10/Materials -9/Materials -9/Mines -8/Materials -7/Factory History --------- Turn | Location | Event 5 | -11/Scrapyard | Discovered new exit (range 15) 68 | -11/Scrapyard | Entered Materials 155 | -10/Materials | Discovered new exit (range 15) 221 | -10/Materials | Entered another Materials area 221 | -9/Materials | Evolved 2 slots: Propulsion x2 315 | -9/Materials | Build established: Mutant 375 | -9/Materials | Discovered new exit (range 12) 395 | -9/Materials | Entered Mines 654 | -9/Mines | Discovered new exit (range 5) 660 | -9/Mines | Entered Materials 660 | -8/Materials | Evolved 2 slots: Power x1, Weapon x1 799 | -8/Materials | Lost 3 parts (1p1n1w) 921 | -8/Materials | Discovered new exit (range 9) 933 | -8/Materials | Entered Factory 933 | -7/Factory | Evolved 2 slots: Utility x2 1050 | -7/Factory | Build established: Scavenger-Skirmisher 1500 | -7/Factory | Core integrity fell below 50% 1521 | -7/Factory | Lost 9 parts (2p2n2u3w) 1573 | -7/Factory | Core integrity fell below 20% 1603 | -7/Factory | Lost 4 parts (1p1u2w) 1616 | -7/Factory | Destroyed by H-55 Commando with Assault Rifle Last Messages --------------- G=VRZ|NI:XHO&>MPG81P3YFN,O%|E Penetrated by Slug. Lgt. Ion Engine destroyed. Slug penetrates Wall. Med. Matter Pod destroyed. Penetrated by Slug. Imp. Datajack destroyed. Penetrated by Slug. Slug penetrates Wall. Penetrated by Slug. System corrupted: Substantial component data lost. Slug penetrates Wall. Nuclear Core destroyed. Jacked H-55 Commando... >>parse_system Reading system data... Penetrated by Slug. Imp. Datajack destroyed. Slug penetrates Wall. Map ----- +----------------------------------------------------+ | ?????????????# # "Y" ! #???????????????????? | | ?????????????# # " " *#???????????????????? | | ??????? ????# # % #???????????????????? | | ??????? ""???# ###########???????????????????? | | ??????? """ ?# #?????????????????????????????? | | ?????# """ # ##############????????????????? | | ?????? + # #????????????????? | | ???????????? # # """ """ #????????????????? | | ???????????? # # """ """ #????????????????? | | #+############ # """ """ #????????????????? | | # #????????????????? | | # """ #????????????????? | | + """ #????????????????? | | ^ # / """ #????????????????? | | # #????????????????? | | ########+##### # #????????????????? | | ? ## # # #????????????????? | | " ## # # #????????????????? | | " ## # ##############????????????????? | | " ## # ## #??????????????????????? | | ## # ## #??????????????????????? | | " ?# = # ## #??????????????????????? | | " ?# # ## #??????????????????????? | | ??# # ####+###??????????????????????? | | ??# # h #??????????????????????? | | #### # @#??????????????????????? | | + # h +??????????????????????? | | #### # #??????????????????????? | | # # #??????????????????????? | | # #########+##+#??????????????????????? | | # #???????????????????????????????????? | | # #???????????????????????????????????? | | ###########???????????????????????????????????? | | #?????????????????????????????????????????????? | | ####?????????????????????????????????????????????? | | ?????????????????????????????????????????????????? | | ?????????????????????????????????????????????????? | | ?????????????????????????????????????????????????? | | ?????????????????????????????????????????????????? | | ?????????????????????????????????????????????????? | | ?????????????????????????????????????????????????? | | ?????????????????????????????????????????????????? | | ?????????????????????????????????????????????????? | | ?????????????????????????????????????????????????? | | ?????????????????????????????????????????????????? | | ?????????????????????????????????????????????????? | | ?????????????????????????????????????????????????? | | ?????????????????????????????????????????????????? | | ?????????????????????????????????????????????????? | | ?????????????????????????????????????????????????? | +----------------------------------------------------+ Best States ------------- Heat Dissipation 34 Energy Generation 23 Energy Capacity 450 Matter Stores 365 Matter Capacity 400 Sight Range 18 Robot Scan Range 15 Terrain Scan Density 10 Evasion (%) 55 Targeting Accuracy 16 Item Schematics ----------------- None Robot Schematics ------------------ None Fabricated ------------ Nothing Alien Tech Used ----------------- None Achievements -------------- None Challenges ------------ None Game ------ Seed TractorMicroShearcannon Manual? 0 Play Time 00:26:44 Cumulative 4.9 hours Start 2024.07.31 @ 19:48:13 End 2024.07.31 @ 20:13:50 Sessions 1 Manual Loads 0 Difficulty Rogue Special Mode None Game No. 11 Rogue 11 Adventurer 0 Explorer 0 Win Type - Total 0 Types 0/0/0/0/0/0/0/0/0 Lore% 7 Gallery% 9 Achievement% 8 Wizard Run 0 Options --------- Layout 1 ASCII 0 Keyboard 1 Movement Vi Keybinds 0 Fullscreen 1 Font 28/SmallcapsGlow Map View 50x43 Zoom Use 0% Tactical HUD 0 Map Filters NONE Filters NONE Steam 0 RUN: b889d64b-5d33-4389-9eb4-f26b41a1c615